{"text_format":"1","workbook":"xlsx","n_sheets":6,"sheets":["Úvod","Žádost","Čestné prohlášení","Rozpočet","Vyúčtování","Hlášení změn rozpočtu"],"not_rendered":{"charts":0,"images":7,"macros":1,"external_links":0,"defined_names":5,"comments":4,"pivot_tables":0},"unopened":[],"bounds":{"document_bytes":16777216,"sheet_cells":100000,"rows_first":2000,"rows_last":500,"rows_between":2000,"halvings":0,"cell_chars":16384,"cell_head_chars":4096},"cells_cut":0,"cells_raw":0,"read":"whole","date_system":"1900"}

{"sheet":"Úvod","index":0,"n_rows":10,"n_cols":2,"rows_kept":10,"cut":false,"hidden":false,"merged":[]}
[]
[]
[null,"Verze dokumentu: 3.10.2016"]
[]
[null,"Na listu Žádost vyplňte žádost do požadovaného grantu."]
[null,"Na listu Vyúčtování následně proveďte vyúčtování - relevantní data se do tohoto listu kopírují z listu žádost."]
[null,"Na listu Čestné přihlášení vyplňte skutečnost ."]
[null,"Na listu Rozpočet vyplňte detailní rozpočet."]
[]
[null,"Sešit obsahuje makro pro ověření IČ a načtení jména organizace pomocí ARES. "]

{"sheet":"Žádost","index":1,"n_rows":88,"n_cols":77,"rows_kept":88,"cut":false,"hidden":false,"merged":[[28,12,28,16],[28,17,28,20],[28,21,28,24],[49,1,50,6],[26,13,27,18],[26,19,27,24],[77,3,77,12],[74,13,77,24],[67,1,67,12],[67,13,67,18],[67,19,67,24],[68,20,68,24],[68,14,68,19],[68,8,68,13],[68,1,68,7],[61,1,61,12],[62,1,62,12],[63,1,63,12],[64,1,64,12],[65,1,65,12],[66,1,66,12],[62,19,62,24],[63,19,63,24],[64,19,64,24],[81,1,81,24],[82,1,82,24],[86,1,86,5],[86,6,86,10],[86,14,86,22],[87,14,87,22],[69,1,69,7],[69,8,69,13],[69,14,69,19],[69,20,69,24],[71,1,71,24],[79,1,79,24],[73,3,73,12],[74,3,74,12],[75,3,75,12],[76,3,76,12],[83,1,83,24],[84,1,84,24],[78,3,78,18],[65,19,65,24],[66,19,66,24],[57,1,57,12],[58,1,58,12],[59,1,59,12],[60,1,60,12],[63,13,63,18],[64,13,64,18],[65,13,65,18],[66,13,66,18],[62,13,62,18],[57,19,57,24],[58,19,58,24],[59,19,59,24],[60,19,60,24],[61,19,61,24],[57,13,57,18],[58,13,58,18],[59,13,59,18],[60,13,60,18],[61,13,61,18],[52,1,53,24],[55,19,55,24],[55,13,55,18],[54,13,54,24],[54,1,55,12],[56,13,56,18],[56,19,56,24],[56,1,56,12],[42,1,45,6],[42,7,45,24],[46,1,46,6],[47,1,47,6],[48,1,48,6],[46,7,46,15],[46,16,46,24],[47,7,47,15],[48,7,48,15],[47,16,47,24],[48,16,48,24],[34,16,34,24],[35,2,35,24],[37,1,40,6],[37,7,40,24],[41,1,41,6],[41,7,41,24],[49,7,50,24],[31,16,31,24],[32,2,32,13],[32,14,32,24],[33,2,34,6],[34,14,34,15],[33,7,33,8],[34,7,34,8],[33,9,33,24],[34,9,34,13],[19,17,19,18],[20,14,20,15],[21,9,21,24],[20,9,20,13],[20,16,20,24],[18,19,18,24],[29,2,29,6],[29,7,29,24],[30,2,31,6],[30,7,30,8],[31,7,31,8],[30,9,30,24],[31,14,31,15],[22,2,23,6],[22,7,23,24],[24,2,25,6],[26,2,27,6],[24,13,25,16],[24,7,25,12],[26,7,27,12],[24,17,25,24],[31,9,31,13],[28,2,28,6],[28,7,28,11],[2,5,6,13],[1,15,1,23],[9,18,9,23],[9,2,9,16],[16,1,34,1],[16,2,17,6],[11,1,11,6],[12,1,13,6],[14,1,14,6],[12,12,13,16],[11,7,11,24],[12,7,13,11],[12,17,13,24],[14,7,14,24],[18,7,18,8],[19,7,19,8],[19,19,19,24],[18,9,18,16],[19,9,19,16],[16,7,17,24],[20,7,20,8],[21,7,21,8],[18,2,21,6],[18,17,18,18]]}
[]
[null,null,null,null,null,null,null,null,null,null,null,null,null,null,null,"Místo pro podací razítko",null,null,null,null,null,null,null,null,null,null,null,null,null,null,null,null,null,null,null,null,null,null,null,null,null,null,null,null,null,null,null,null,null,null,null,null,null,null,null,null,null,null,null,null,null,null,null,null,null,null,null,null,null,null,null,null,null,null,null,null,"Celoroční činnost organizovaná pro děti a mládež"]
[null,null,null,null,null,"ŽÁDOST O DOTACI\nZ ROZPOČTU MĚSTA \nKOSTELCE NAD ORLICÍ",null,null,null,null,null,null,null,null,null,null,null,null,null,null,null,null,null,null,null,null,null,null,null,null,null,null,null,null,null,null,null,null,null,null,null,null,null,null,null,null,null,null,null,null,null,null,null,null,null,null,null,null,null,null,null,null,null,null,null,null,null,null,null,null,null,null,null,null,null,null,"Jednorázové akce pro děti a mládež"]
[null,null,null,null,null,null,null,null,null,null,null,null,null,null,null,null,null,null,null,null,null,null,null,null,null,null,null,null,null,null,null,null,null,null,null,null,null,null,null,null,null,null,null,null,null,null,null,null,null,null,null,null,null,null,null,null,null,null,null,null,null,null,null,null,null,null,null,null,null,null,null,null,null,null,null,null,"Kultura mládeže i dospělých"]
[null,null,null,null,null,null,null,null,null,null,null,null,null,null,null,null,null,null,null,null,null,null,null,null,null,null,null,null,null,null,null,null,null,null,null,null,null,null,null,null,null,null,null,null,null,null,null,null,null,null,null,null,null,null,null,null,null,null,null,null,null,null,null,null,null,null,null,null,null,null,null,null,null,null,null,null,"Sport – celoroční pravidelná činnost"]
[null,null,null,null,null,null,null,null,null,null,null,null,null,null,null,null,null,null,null,null,null,null,null,null,null,null,null,null,"Postup vyplnění:",null,null,null,null,null,null,null,null,null,null,null,null,null,null,null,null,null,null,null,null,null,null,null,null,null,null,null,null,null,null,null,null,null,null,null,null,null,null,null,null,null,null,null,null,null,null,null,"Sport – jednorázové akce"]
[null,null,null,null,null,null,null,null,null,null,null,null,null,null,null,null,null,null,null,null,null,null,null,null,null,null,null,null,"1) Zvolte typ dotačního programu - vyberte požadovaný ze seznamu",null,null,null,null,null,null,null,null,null,null,null,null,null,null,null,null,null,null,null,null,null,null,null,null,null,null,null,null,null,null,null,null,null,null,null,null,null,null,null,null,null,null,null,null,null,null,null,"Drobné veřejně prospěšné a mimořádné aktivity – malé projekty"]
[null,null,null,null,null,null,null,null,null,null,null,null,null,null,null,null,null,null,null,null,null,null,null,null,null,null,null,null,"2) Vyplňte základní informace o organizaci - zadané IČ je ověřováno v registru ARES",null,null,null,null,null,null,null,null,null,null,null,null,null,null,null,null,null,null,null,null,null,null,null,null,null,null,null,null,null,null,null,null,null,null,null,null,null,null,null,null,null,null,null,null,null,null,null,"Podpora sociálních služeb a služeb navazujících, prevence před rizikovými jevy"]
[null,null,null,null,null,null,null,null,null,null,null,null,null,null,null,null,null,null,null,null,null,null,null,null,null,null,null,null,"3) Vyplňte položky s popisem projektu",null,null,null,null,null,null,null,null,null,null,null,null,null,null,null,null,null,null,null,null,null,null,null,null,null,null,null,null,null,null,null,null,null,null,null,null,null,null,null,null,null,null,null,null,null,null,null,"Individuální žádost"]
[null,null,"Podpora sociálních služeb a služeb navazujících, prevence před rizikovými jevy",null,null,null,null,null,null,null,null,null,null,null,null,null,null,null,"Ev. číslo:",null,null,null,null,null,null,null,null,null,"4) Vyplňte kompletní rozpočet - součty a další výpočty budou provedeny automaticky"]
[]
[null,"Název akce:",null,null,null,null,null," "]
[null,"Datum konání akce:\n(období, pokud není znám termín)",null,null,null,null,null," ",null,null,null,null,"Místo konání akce:",null,null,null,null," ",null,null,null,null,null,null,null,null,null,null,"Poznámka: v případě potřeby je možné sešit a list odemknout heslem \"kostelecno\""]
[]
[null,"Požadovaná dotace v Kč:"]
[]
[null,"Základní informace","Žadatel o dotaci\n (název subjektu nebo jméno fyzické osoby): "]
[]
[null,null,"Sídlo/adresa žadatele\n(shodná s dokladem \no právní subjektivitě):",null,null,null,null,"obec:",null," ",null,null,null,null,null,null,null,"PSČ:",null," "]
[null,null,null,null,null,null,null,"ulice:",null," ",null,null,null,null,null,null,null,"čp:",null," "]
[null,null,null,null,null,null,null,"telefon:",null," ",null,null,null,null,"e-mail:",null," "]
[null,null,null,null,null,null,null,"www:",null," "]
[null,null,"Kontaktní adresa \npro doručování:",null,null,null,null," "]
[]
[null,null,"IČ (u fyzické osoby RČ):",null,null,null,null,null,null,null,null,null,null,"Právní forma \n(typ organizace):",null,null,null," "]
[]
[null,null,"Další osoby s podílem v této\n právnické osobě:",null,null,null,null,null,null,null,null,null,null,"Přímý podíl v jiných právnických\nosobách a jeho výše:"]
[]
[null,null,"Identifikátor služby (ID):",null,null,null,null,null,null,null,null,null,"Pověření/Dodatek k pověření:",null,null,null,null,"od:",null,null,null,"do:"]
[null,null,"Číslo účtu a název banky:",null,null,null,null," "]
[null,null,"Oprávněný zástupce \n(osoba oprávněná podepisovat smlouvy):",null,null,null,null,"jméno:",null," "]
[null,null,null,null,null,null,null,"telefon:",null," ",null,null,null,null,"e-mail:",null," "]
[null,null,"Právní důvod zastoupení (např. stanovy, zápis z ustavující schůze…)"]
[null,null,"Osoba odpovědná za realizaci projektu, kontaktní osoba:",null,null,null,null,"jméno:"]
[null,null,null,null,null,null,null,"telefon:",null,null,null,null,null,null,"e-mail:"]
[null,null,"Dotační program se řídí Pravidly pro poskytování dotací z rozpočtu města Kostelec nad Orlicí \nzveřejněnými na webových stránkách města: http://www.kostelecno.cz/granty-a-dotace/ds-1013/p1=1038"]
[]
[null,"Účel dotace\nobsah, cíl, předpokládaný přínos\n(čeho chcete dosáhnout):",null,null,null,null,null," "]
[]
[]
[]
[null,"Doba dosažení účelu \n(termín zahájení a ukončení projektu):",null,null,null,null,null," "]
[null,"Odůvodnění žádosti:",null,null,null,null,null," "]
[]
[]
[]
[null,null,null,null,null,null,null,"V minulém roce",null,null,null,null,null,null,null,null,"Předpoklad letošní rok"]
[null,"Počet klientů Kostelec nad Orlicí"]
[null,"Počet klientů spádová oblast PO3"]
[null,"Cílová skupina:",null,null,null,null,null," "]
[]
[]
[null,"Rozpočet projektu"]
[]
[null,"Výdaje / náklady",null,null,null,null,null,null,null,null,null,null,null,"Náklady v Kč"]
[null,null,null,null,null,null,null,null,null,null,null,null,null,"Dotace (dle Pravidel čl.8)",null,null,null,null,null,"Vlastní zdroje/ostatní"]
[null," ",null,null,null,null,null,null,null,null,null,null,null," ",null,null,null,null,null," "]
[]
[null,null,null,null,null,null,null,null,null,null,null,null,null," ",null,null,null,null,null," "]
[]
[]
[]
[]
[]
[]
[]
[]
[null,"Celkem:",null,null,null,null,null,null,null,null,null,null,null,{"$f":"SUM(N57:S67)","v":0},null,null,null,null,null,{"$f":"SUM(T57:Y67)","v":0}]
[null,"Požadovaná výše dotace v Kč:",null,null,null,null,null,null,{"$f":"N68","v":0},null,null,null,null,null,"Podíl dotace na celkových nákladech v % (max. 80%):",null,null,null,null,null,{"$f":"IF((N68+T68) <> 0,N68/(N68+T68),0)","v":0}]
[null,"Krytí nákladů z \nvlastních prostředků v Kč:",null,null,null,null,null,null,{"$f":"T68-U70","v":0},null,null,null,null,null,"Krytí nákladů z cizích \nprostředků v Kč:"]
[]
[null,"Povinné přílohy dle Pravidel pro poskytování dotací z rozpočtu města Kostelec nad Orlicí (zaškrtněte):"]
[]
[null,"1.",null,"Doklad o právní subjektivitě vč. kopie přidělení IČ *",null,null,null,null,null,null,null,null,null,"Ostatní přílohy (vypište):"]
[null,"2.",null,"Pověření osoby oprávněné k jednání za žadatele o dotaci *"]
[null,"3.",null,"Doklad o zřízení běžného účtu*"]
[null,"4.",null,"Podrobný rozpočet projektu"]
[null,"5.",null,"Podrobná charakteristika akce (nebo propozice)   "]
[null,"6.",null,"Pověření/Dodatek KHK k zajištění dostupnosti sociální služby *"]
[null,"* V případě, že žadatel podal žádost o dotaci v předešlém roce a nedošlo ke změně, nemusí již přílohy k žádosti dokládat znovu."]
[null,null,null,null,null,null," "]
[null,"PROHLÁŠENÍ ŽADATELE:"]
[null,"Žadatel svým podpisem prohlašuje, že všechny uvedené údaje v žádosti jsou pravdivé a souhlasí se zařazením do databáze poskytovatele a se zveřejněním identifikačních údajů o své osobě (subjektu) a výši poskytnuté dotace na webových stránkách poskytovatele (města) v souladu se zákonem č. 101/2000 Sb., o ochraně osobních údajů.\n\nŽadatel dále prohlašuje, že:\n     - není v úpadku ani neprobíhá ohledně majetku žadatele (subjektu) žádné z insolventních řízení \n     upravených zákonem č. 182/2006 Sb., insolventní zákon v platném znění, není v likvidaci\n     - s žadatelem nejsou vedeny žádné soudní ani jiné spory s městem Kostelec nad Orlicí ani jeho \n     organizacemi a žadatel není jejich dlužníkem"]
[null,"Žadatel o dotaci tímto poskytuje městu Kostelec nad Orlicí údaje uvedené v této žádosti o dotaci k jejich zpracování za účelem administrace předmětné žádosti o dotaci Městským úřadem Kostelec nad Orlicí, a to ve smyslu zákona č. 101/2000 Sb., o zpracování osobních\núdajů.\nŽadatel o dotaci tímto dává souhlas se zveřejněním svého názvu a sídla/jména, příjmení a bydliště, názvu projektu, účelu, na který chce žadatel o dotaci požadovanou dotaci použít, i výše případně poskytnuté dotace na internetových stránkách města Kostelce nad Orlicí."]
[null,"POZOR! U žádostí o dotaci je nově nutné doložit údaje o skutečném majiteli právnické osoby ve formě úplného výpisu [ust. § 10a odst. (3) zákona č. 250/2000 Sb., o rozpočtových pravidlech územních rozpočtů, ve znění pozdějších předpisů] – netýká se právnických osob uvedených v ust. § 7 zákona č. 37/2021 Sb., o evidenci skutečných majitelů (např. územní samosprávný celek, dobrovolný svazek obcí, školská právnická osoba zřízená územním samosprávným celkem či dobrovolným svazkem obcí, příspěvková organizace územního samosprávného celku, církev/náboženská společnost/ostatní právnické osoby podle zákona upravujícího církve a náboženské společnosti). Tento výpis se tak stal zákonnou náležitostí žádosti o dotaci, a tudíž bude jeho přiložení vyžadováno před elektronickým odesláním žádosti o dotaci přes Dotační portál Královéhradeckého kraje. Úplný výpis je možné získat u příslušného krajského soudu (u právnické osoby se jedná o krajský soud, v jehož obvodu je obecní soud této právnické osoby; u pobočného spolku se jedná o krajský soud, v jehož obvodu je obecní soud hlavního spolku)."]
[]
[null,"V Kostelci nad Orlicí dne"]
[null,null,null,null,null,null,null,null,null,null,null,null,null,null,"Podpis žadatele nebo statutárního zástupce\nžadatele (razítko)"]

{"sheet":"Čestné prohlášení","index":2,"n_rows":38,"n_cols":8,"rows_kept":38,"cut":false,"hidden":false,"merged":[[36,1,36,10],[37,1,37,10],[6,1,6,2],[6,3,6,10],[8,1,8,2],[8,3,8,10],[11,1,11,2],[11,6,11,7],[11,3,11,5],[11,8,11,10],[24,1,24,10],[26,1,26,10],[28,1,28,10],[30,1,30,10],[33,1,33,3],[33,4,33,5],[1,1,1,10],[4,1,4,10],[13,1,13,10],[34,7,34,10],[33,7,33,10],[15,1,15,10],[16,1,16,10],[17,1,17,10],[18,1,18,10],[20,1,20,10],[22,1,22,10]]}
[]
[null,"ČESTNÉ PROHLÁŠENÍ"]
[null," "]
[null," "]
[null,"Prohlašuji tímto, že fyzická / právnická osoba"]
[null," "]
[null,"jméno / název : ",null,{"$f":"Žádost!H17","v":0}]
[null," "]
[null,"adresa / sídlo :"]
[null," "]
[null," "]
[null,"IČ :",null,{"$f":"Žádost!H25","v":0},null,null,"DIČ :"]
[null," "]
[null,"     předložila v posledních 5 letech Odboru sociálních věcí Městského úřadu Kostelec nad Orlicí při žádosti o dotaci níže uvedené dokumenty* a od doby předložení nedošlo k jejich změně"]
[]
[null," - základní organizační dokumenty organizace - stanovy, statut "]
[null," - doklad o oprávnění statutárního orgánu podepisovat smlouvy"]
[null," - doklad o registraci poskytovatele sociálních služeb dle zák. č. 108/2006 Sb."]
[null," - kopie Pověření Královéhradeckého kraje k zajištění dostupnosti poskytování sociální služby"]
[]
[null,"     nemá v době podpisu tohoto prohlášení žádné závazky po lhůtě splatnosti vůči rozpočtu Města Kostelec nad Orlicí, poskytnuté finanční prostředky v předchozím roce byly ve stanoveném termínu řádně vyúčtovány** "]
[]
[null,"     nemá v době podpisu tohoto prohlášení u místně příslušného finančního úřadu, okresní správy sociálního zabezpečení a zdravotních pojišťoven žádné nesplacené závazky po lhůtě splatnosti"]
[]
[null,"     nemá v době podpisu tohoto prohlášení žádné závazky po lhůtě splatnosti vůči státním fondům, přičemž za závazky vůči státním fondům se považují závazky vůči Fondu národního majetku, Státnímu fondu životního prostředí, Pozemkovému fondu, zdravotním pojišťovnám a Celní správě, za vypořádání nelze považovat posečkání dlužných závazků"]
[]
[null,"     nebyla v době do podpisu tohoto prohlášení příjemcem veřejné podpory přesahující strop ve výši 200 000 EUR za období posledních tří let v souladu s Nařízením Komise (EU) č. 1407/2013 ze dne 18. prosince 2013 o použití článků 107 a 108 Smlouvy o fungování Evropské unie na podporu de minimis na projekt, který je předmětem této žádosti"]
[]
[null,"     není v likvidaci, konkurzním řízení, nebyl na ni podán návrh na prohlášení konkurzu, není ve vyrovnávacím řízení a není účastníkem exekučního řízení na straně povinné"]
[]
[null,"Osoba níže podepsaná prohlašuje, že je oprávněna učinit toto prohlášení a je si vědoma možných právních důsledků, zamlčí-li nějakou skutečnost nebo uvede-li nepravdivý údaj"]
[null," "]
[null," "]
[null,"V Kostelci nad Orlicí dne"]
[null,null,null,null,null,null,null," (jméno, podpis, funkce)"]
[null," "]
[null,"* pokud žadatel uvedené dokumenty v minulosti nepředložil, je povinen je předložit jako přílohu žádosti o dotaci"]
[null,"** v případě, že byly v předchozím roce poskytnuty."]

{"sheet":"Rozpočet","index":3,"n_rows":58,"n_cols":10,"rows_kept":58,"cut":false,"hidden":false,"merged":[[57,1,57,2],[51,1,51,2],[52,1,52,2],[53,1,53,2],[54,1,54,2],[55,1,55,2],[56,1,56,2],[50,7,50,9],[45,1,45,2],[46,1,46,2],[47,1,47,2],[48,1,48,2],[50,1,50,2],[49,1,49,2],[48,7,48,9],[49,7,49,9],[36,1,37,9],[39,1,39,9],[42,1,44,2],[42,3,44,3],[42,4,44,4],[42,5,44,5],[42,6,44,6],[32,7,33,7],[32,8,33,8],[32,9,33,9],[22,1,23,1],[22,3,23,3],[22,4,23,4],[22,5,23,5],[22,6,23,6],[32,1,33,1],[32,3,33,3],[32,4,33,4],[32,5,33,5],[32,6,33,6],[4,1,4,2],[22,7,23,7],[22,8,23,8],[22,9,23,9],[14,9,15,9],[1,1,1,9],[6,1,7,9],[12,3,12,5],[12,6,13,7],[12,8,13,9],[13,1,15,2],[13,3,13,5],[14,3,15,3],[14,4,15,4],[3,3,3,7],[4,3,4,7],[14,5,15,5],[14,6,15,6],[14,7,15,7],[14,8,15,8],[3,1,3,2],[0,1,0,9],[9,1,9,9],[56,7,56,9],[57,7,57,9],[51,7,51,9],[52,7,52,9],[53,7,53,9],[54,7,54,9],[55,7,55,9],[32,2,33,2],[42,7,44,9],[41,7,41,9],[45,7,45,9],[46,7,46,9],[35,1,35,9],[47,7,47,9]]}
[null,"Město Kostelec nad Orlicí"]
[null,"Dotace 2025 - Rozpočet_Podpora sociálních služeb a služeb navazujících, prevence před rizikovými jevy"]
[]
[null,"Název organizace:"]
[null,"Název aktivity/služby:"]
[]
[null,"Rozpočet projektu na rok 2025 podle zdrojů "]
[]
[]
[null,"a přehled získaných finančních prostředků na projekt v roce 2023 a 2024"]
[]
[null,null,null,"A","B","C","E","F","G","H"]
[null,null,null,"Rozpočet projektu na rok 2025",null,null,"předpoklad 2024",null,"skutečnost 2023"]
[null,"Požadavek na finanční prostředky od:",null,"neinvestiční (běžné)"]
[null,null,null,"celkem","1. provozní celkem","2. mzdové celkem","1. provozní celkem","2. mzdové celkem","1. provozní celkem","2. mzdové celkem"]
[]
[null,1,"Město Kostelec nad Orlicí",{"$f":"E17+F17","v":0}]
[null,2,"Jiné město, obec",0]
[null,3,"MŠMT",0]
[null,4,"MZ",0]
[null,5,"MV",0]
[null,6,"MPSV",0]
[null,7,"Mezirezortní rady vlády",0]
[null,null,"(komise a výbory)"]
[null,8,"Kraj",{"$f":"E25+F25","v":0}]
[null,9,"Úřady práce",0]
[null,10,"Fondy zdrav. pojišťoven",0]
[null,11,"Nadace ",0]
[null,12,"Sbírky",0]
[null,13,"Dary, sponzoring",0]
[null,14,"Příjmy od uživatelů",0]
[null,15,"Ostatní (uveďte jaké) ",0]
[null,null,"Celkové náklady na projekt",{"$f":"SUM(D17:D32)","v":0},0,0,0,0,0,0]
[]
[]
[null,"všechny uvedené údaje jsou platné k datu podání žádosti"]
[null,"           Rozpočet projektu (neinvestiční náklady) a požadavek od města Kostelec nad Orlicí na rok 2025 podle nákladových položek                      "]
[]
[]
[null,"na každý druh služby dle platného rozhodnutí o registraci, na který jsou požadovány fin. prostředky "]
[]
[null,null,null,"A","B","C","D","E"]
[null,"Nákladová položka",null,"Celkové náklady na rok 2025","Požadavek na město Kostelec n. Orl. pro rok 2025","Předpokládané celkové náklady za rok 2024","Celkové náklady za rok 2023","Poznámka - slovní komentář"]
[]
[]
[null,"1. Provozní náklady celkem",null,{"$f":"SUM(D47,D48,D49,D50,D51,D52,D53)","v":0},{"$f":"SUM(E47,E48,E49,E50,E51,E52,E53)","v":0},{"$f":"SUM(F47,F48,F49,F50,F51,F52,F53)","v":0},{"$f":"SUM(G47,G48,G49,G50,G51,G52,G53)","v":0}]
[null,"1.1. Materiálové náklady   "]
[null,"1.2. Energie "]
[null,"1.3. Služby celkem "]
[null,"1.4. Cestovní náklady "]
[null,"1.5. Opravy, údržba "]
[null,"1.6. Spoje (telefon, internet, poštovné) "]
[null,"1.7. Jiné náklady (konkretizujte)"]
[null,"2. Mzdové náklady celkem",null,{"$f":"D55+D56+D57","v":0},{"$f":"E55+E56+E57","v":0},{"$f":"F55+F56+F57","v":0},{"$f":"G55+G56+G57","v":0}]
[null,"2.1. Hrubé mzdy zaměstnanců celkem"]
[null,"2.2. Ostatní osobní náklady celkem"]
[null,"2.3. Odvody soc. a zdr. pojištění celkem"]
[null,"Celkové náklady na realizaci projektu",null,{"$f":"D46+D54","v":0},{"$f":"E46+E54","v":0},{"$f":"F46+F54","v":0},{"$f":"G46+G54","v":0}]

{"sheet":"Vyúčtování","index":4,"n_rows":55,"n_cols":12,"rows_kept":55,"cut":false,"hidden":false,"merged":[[13,13,13,15],[54,1,54,4],[49,1,50,4],[49,5,50,5],[49,6,51,7],[52,6,52,7],[53,5,54,5],[53,6,54,7],[41,4,41,5],[42,4,42,5],[43,4,43,5],[46,1,46,7],[47,1,47,7],[48,1,48,7],[35,4,35,5],[36,4,36,5],[37,4,37,5],[38,4,38,5],[39,4,39,5],[40,4,40,5],[29,4,29,5],[30,4,30,5],[31,4,31,5],[32,4,32,5],[33,4,33,5],[34,4,34,5],[28,4,28,5],[17,4,17,5],[18,4,18,5],[19,4,19,5],[20,4,20,5],[21,4,21,5],[22,4,22,5],[23,4,23,5],[24,4,24,5],[25,4,25,5],[26,4,26,5],[27,4,27,5],[16,4,16,5],[7,1,7,7],[8,1,8,7],[9,1,10,1],[9,2,10,2],[9,3,10,3],[9,4,10,5],[9,6,10,6],[9,7,10,7],[11,4,11,5],[12,4,12,5],[13,4,13,5],[14,4,14,5],[15,4,15,5],[6,1,6,7],[1,2,1,7],[3,1,3,3],[4,1,4,3],[5,2,5,3],[5,5,5,7]]}
[]
[null,null,"Vyúčtování finanční dotace z rozpočtu Města Kostelec nad Orlicí za rok 2025                   Formulář vyplňte čitelně hůlkovým písmem nebo na stroji (formulář v elektronické podobě: http://www.kostelecno.cz/granty-a-dotace/ds-1013/p1=1038) "]
[]
[null,"Příjemce dotace:",null,null,"IČ:","Výše dotace:","Vyčerpáno z dotace:","Vráceno:"]
[null,{"$f":"IF(Žádost!H17 <> \"\",Žádost!H17,\"\")","v":""},null,null,{"$f":"IF(Žádost!H25 <> \"\",Žádost!H25,\"\")","v":""},{"$f":"Žádost!N68","v":0},{"$f":"H45","v":0},{"$f":"F5-G5","v":0}]
[null,"Číslo smlouvy:",null,null,"Název projektu:",{"$f":"IF(Žádost!H12 <> \"\",Žádost!H12,\"\")","v":" "}]
[null,"Účel dotace - dle článku II. uzavřené smlouvy o poskytnutí dotace z rozpočtu města Kostelec nad Orlicí "]
[]
[null,"Přehled o platbách hrazených z poskytnuté dotace Města Kostelec nad Orlicí v roce 2025"]
[null,"číslo dokladu","datum úhrady","forma úhrady (hotově, bezhotovostně)","účel platby",null,"částka uvedená na dokladu","hrazeno z dotace"]
[]
[]
[]
[]
[]
[]
[]
[]
[]
[]
[]
[]
[]
[]
[]
[null,null,null,null,null,null,null,null,null," "]
[]
[]
[]
[]
[]
[]
[]
[]
[]
[]
[]
[]
[]
[]
[]
[]
[]
[]
[null,null,null,null,null,"CELKEM",{"$f":"SUM(G12:G44)","v":0},{"$f":"SUM(H12:H44)","v":0}]
[]
[null,"DŮLEŽITÉ UPOZORNĚNÍ:  Tento formulář a další potřebné materiály pro vyúčtování doručte na organizačně-správní odbor do termínu uvedeném ve smlouvě o poskytnutí dotace. V případě nedodržení termínu je poskytovatel oprávněn postupovat podle článku V. uzavřené smlouvy o poskytnutí dotace z rozpočtu města a Pravidel pro poskytování dotací z rozpočtu města Kostelec nad Orlicí. Spolu s tímto vyúčtováních předložte kopie příslušných dokladů."]
[null,"Na originálu dokladu musí být uveden text „Hrazeno z dotace města Kostelec nad Orlicí a evidenční číslo smlouvy“ - v případě částečného hrazení z dotace prosím označte i částku hrazenou z dotace.  Nedílnou součástí tohoto vyúčtování je stručné písemné zhodnocení akce, na kterou byla dotace poskytnuta.  Příjemce dotace je povinen prokázat účel užití dotace. Další podrobnosti uvádí smlouva.",null,null,null,null,null,null,null,null,null," "]
[null,"Příjemce je povinen vést účetnictví v souladu s obecně platnými předpisy, zejm. zákonem č. 563/1991 Sb., o účetnictví, ve znění pozdějších předpisů, a zajistit řádné a oddělené sledování přijatých a použitých finančních prostředků dotace. Příjemce, který nevede účetnictví podle tohoto zákona, je povinen vést daňovou evidenci podle zákona č. 586/1992 Sb., o daních z příjmů, ve znění pozdějších předpisů, rozšířenou tak, aby příslušné doklady vztahující se k dotaci splňovaly náležitosti účetního dokladu ve smyslu § 11 zákona o účetnictví, s výjimkou § 11 odst. 1 písm. f), a aby předmětné doklady byly správné, úplné, průkazné, srozumitelné, vedené v písemné formě chronologicky a způsobem zaručujícím jejich trvanlivost a aby uskutečněné příjmy a výdaje dotace byly vedeny odděleně s uvedením přiděleného účelového znaku. Příjemce uvede toto označení zejména na originálech výpisů z bankovního účtu, výdajových pokladních dokladech a dále pak na originálech faktur, zjednodušených daňových dokladech, smlouvách (pokud na jejich základě probíhá fakturace či platba), originálech evidence docházky a mzdových listech apod."]
[null,"Čestně prohlašujeme, že všechny zde uvedené údaje jsou správné a pravdivé.",null,null,null,"zpracoval/a","                                                                         "]
[]
[]
[null,null,null,null,null,"telefon/e-mail"]
[null,null,null,null,null,"datum, razítko a podpis statutárního zástupce"]
[null,{"$f":"Žádost!C10","v":"Podpora sociálních služeb a služeb navazujících, prevence před rizikovými jevy"}]

{"sheet":"Hlášení změn rozpočtu","index":5,"n_rows":47,"n_cols":2,"rows_kept":47,"cut":false,"hidden":false,"merged":[[35,0,35,1],[36,0,40,1],[0,0,0,1],[6,0,6,1],[7,0,7,1],[8,0,8,1],[16,0,16,1],[17,0,34,1]]}
["Příloha k Žádosti o dotaci z rozpočtu města Kostelec nad Orlicí"]
[]
[]
[]
[]
[]
["Hlášení změn"]
["dle článku 3., Pravidla pro poskytování dotací z rozpočtu města Kostelec nad Orlicí"]
["dle článku 4., Veřejnoprávní smlouva o poskytnutí dotace z rozpočtu města Kostelec nad Orlicí"]
[]
["Číslo Veřejnoprávní smlouvy o poskytnutí dotace:"]
["Název příjemce dotace:"]
["IČO příjemce dotace:"]
["Sídlo příjemce:"]
["Druh služby, které se změna týká:"]
["Účel dotace dle veřejnoprávní smlouvy:"]
["Popis změny (včetně případného dopadu na čerpání dotace):"]
[]
[]
[]
[]
[]
[]
[]
[]
[]
[]
[]
[]
[]
[]
[]
[]
[]
[]
["Datum, razítko a podpis osoby oprávněné jednat jménem příjemce dotace:"]
[]
[]
[]
[]
[]
[]
[]
[]
[]
[]
[null," "]